fUST/lending_fUST_20250615
["ID","MTS","AMOUNT","RATE_DAILY","PERIOD"]
[365886931,1749971447969,-3000.0,0.0002354,2]
[365886932,1749971447978,-3000.0,0.0002355,2]
[365886933,1749971447987,-2069.72210476,0.00023555,9]
[365886934,1749971447997,-964.0,0.0002356,2]
[365886935,1749971448006,-5597.461033,0.0002356,2]
[365886936,1749971448015,-154.770361,0.00023561,7]
[365886937,1749971448024,-329.81140776,0.00023561,4]
[365886938,1749971448033,-200.0,0.00023561,4]
[365886939,1749971448043,-200.0,0.00023561,4]
[365886940,1749971448052,-200.0,0.00023561,4]
[365886941,1749971448061,-200.0,0.00023561,4]
[365886942,1749971448071,-200.0,0.00023561,4]
[365886943,1749971448080,-200.0,0.00023561,4]
[365886944,1749971448089,-200.0,0.00023561,4]
[365886945,1749971448098,-151.0,0.00023561,7]
[365886946,1749971448108,-151.0,0.00023561,7]
[365886947,1749971448117,-612.83,0.00023561,4]
[365886948,1749971448126,-524.01,0.00023561,4]
[365886949,1749971448136,-350.0,0.00023561,4]
[365886950,1749971448145,-733.7,0.00023561,4]
[365886951,1749971448154,-300.503759,0.00023561,7]
[365886952,1749971448164,-251.562073,0.00023561,7]
[365886953,1749971448174,-151.0,0.00023561,2]
[365886954,1749971448183,-570.09,0.00023561,4]
[365886955,1749971448192,-151.0,0.00023561,2]
[365886956,1749971448202,-151.0,0.00023561,7]
[365886957,1749971448211,-191.16713,0.00023561,7]
[365886958,1749971448221,-191.16713,0.00023561,7]
[365886959,1749971448230,-460.0,0.00023561,2]
[365886960,1749971448239,-460.0,0.00023561,4]
[365886961,1749971448248,-664.89,0.00023561,4]
[365886962,1749971448262,-189.485465,0.00023561,7]
[365886963,1749971448272,-507.34,0.00023561,4]
[365886964,1749971448282,-460.0,0.00023561,4]
[365886965,1749971448292,-537.7,0.00023561,4]
[365886966,1749971448303,-3287.64,0.00023561,4]
[365886967,1749971448313,-460.0,0.00023561,4]
[365886968,1749971448322,-806.68,0.00023561,4]
[365886969,1749971448333,-460.0,0.00023561,4]
[365886970,1749971448342,-673.17,0.00023561,4]
[365886971,1749971448352,-151.0,0.00023561,7]
[365886972,1749971448362,-255.03019116,0.00023561,4]
[365886973,1749971448372,-460.0,0.00023561,4]
[365886974,1749971448381,-3566.18,0.00023561,4]
[365886975,1749971448390,-646.69,0.00023561,4]
[365886976,1749971448400,-2878.77,0.00023561,4]
[365886977,1749971448409,-151.0,0.00023561,7]
[365886978,1749971448418,-151.0,0.00023561,7]
[365886979,1749971448430,-3318.73,0.00023561,4]
[365886980,1749971448440,-460.0,0.00023561,4]
[365886981,1749971448449,-596.54,0.00023561,4]
[365886982,1749971448458,-460.0,0.00023561,4]
[365886983,1749971448469,-1382.73,0.00023561,4]
[365886984,1749971448478,-1494.36,0.00023561,4]
[365886985,1749971448488,-1463.96,0.00023561,4]
[365886986,1749971448497,-460.0,0.00023561,4]
[365886987,1749971448507,-181.931067,0.00023561,7]
[365886988,1749971448517,-1164.79,0.00023561,4]
[365886989,1749971448526,-813.93,0.00023561,4]
[365886990,1749971448536,-181.931067,0.00023561,7]
[365886991,1749971448546,-460.0,0.00023561,4]
[365886992,1749971448555,-1673.73,0.00023561,4]
[365886993,1749971448565,-460.0,0.00023561,4]
[365886994,1749971448575,-460.0,0.00023561,4]
[365886995,1749971448585,-540.26,0.00023561,4]
[365886996,1749971448594,-460.0,0.00023561,4]
[365886997,1749971448604,-460.0,0.00023561,4]
[365886998,1749971448613,-169.94027931,0.00023561,4]
[365886999,1749971448879,-302.94972069,0.00023561,4]
[365887000,1749971448889,-460.0,0.00023561,4]
[365887001,1749971448899,-158.10314851,0.00023561,4]
[365887002,1749971448911,-301.89685149,0.00023561,4]
[365887003,1749971448920,-502.45643628,0.00023561,4]
[365887004,1749971449080,-137.05356372,0.00023561,4]
[365887005,1749971449090,-1874.55,0.00023561,4]
[365887006,1749971449100,-460.0,0.00023561,4]
[365887007,1749971449110,-460.0,0.00023561,4]
[365887008,1749971449120,-2300.06,0.00023561,4]
[365887009,1749971449129,-460.0,0.00023561,4]
[365887010,1749971449139,-460.0,0.00023561,4]
[365887011,1749971449149,-701.62,0.00023561,4]
[365887012,1749971449159,-151.0,0.00023561,7]
[365887013,1749971449168,-460.0,0.00023561,4]
[365887014,1749971449179,-460.0,0.00023561,4]
[365887015,1749971449190,-151.0,0.00023561,7]
[365887016,1749971449200,-1688.36,0.00023561,4]
[365887017,1749971449210,-236.35643628,0.00023561,4]
[365887018,1749971449308,-500.0,0.00020164,2]
[365887019,1749971449318,-460.0,0.00021917,4]
[365887020,1749971449328,-4128.1444242,0.00022191,2]
[365887021,1749971449338,-293.00356372,0.00023561,4]
[365887022,1749971449347,-1078.04,0.00023561,4]
[365887023,1749971449357,-989.65,0.00023561,4]
[365887024,1749971449367,-460.0,0.00023561,4]
[365887025,1749971449376,-2313.64,0.00023561,4]
[365887026,1749971449386,-460.0,0.00023561,4]
[365887027,1749971449395,-3537.21,0.00023561,4]
[365887028,1749971449404,-2354.21,0.00023561,4]
[365887029,1749971449413,-151.0,0.00023561,7]
[365887030,1749971449423,-915.39001208,0.000236,3]
[365887031,1749971449613,-460.0,0.00021917,4]
[365887032,1749971449623,-460.0,0.00021917,4]
[365887033,1749971449633,-44.88104895,0.00022356,2]
[365887034,1749971450454,-455.11895105,0.00022356,2]
[365887035,1749971450464,-1084.60998792,0.000236,3]
[365887036,1749971450474,-151.0,0.000236,8]
[365887037,1749971450484,-151.0,0.000236,9]
[365887038,1749971450494,-639.0,0.000236,2]
[365887039,1749971450503,-500.0,0.00023633,2]
[365887040,1749971450512,-500.0,0.00023639,2]
[365887041,1749971450522,-168.0,0.0002365,2]
[365887042,1749971450532,-500.0,0.00023677,2]
[365887043,1749971450542,-168.0,0.00023679,2]
[365887044,1749971450551,-244.10651232,0.00023685,3]
[365887045,1749971450562,-9878.58143828,0.00023687,2]
[365887056,1749971684199,160.6370683,0.00016438,3]
[365887060,1749971808267,162.126578,0.00013699,2]
[365887061,1749971860384,-151.0,0.00020187,2]
[365887063,1749971926410,-11.126578,0.00020187,2]
[365887064,1749971926431,-156.873422,0.00020749,2]
[365887067,1749972038310,255.25,0.0002,2]
[365887071,1749972186685,-24.7352842,0.00020749,2]
[365887072,1749972186707,-219.2647158,0.0002076,2]
[365887088,1749972371878,1000.0,0.000236,120]
[365887089,1749972395270,164.0,0.0002,2]
[365887090,1749972396308,164.0,0.0002,2]
[365887091,1749972397007,164.0,0.0002,2]
[365887092,1749972397540,164.0,0.0002,2]
[365887093,1749972414474,1000.0,0.000235,120]
[365887094,1749972425397,-7.0899658,0.0002076,2]
[365887095,1749972425421,-201.27308645,0.00020924,2]
[365887096,1749972425443,-2007.1,0.00021027,2]
[365887097,1749972425465,-177.705349,0.00021172,2]
[365887098,1749972425491,-168.0,0.00021437,2]
[365887099,1749972425515,-168.0,0.00021695,2]
[365887100,1749972425546,-1337.24364847,0.000219,6]
[365887101,1749972425568,-1200.0,0.00021913,2]
[365887102,1749972425589,-231.0,0.00021914,2]
[365887103,1749972425610,-300.0,0.00021914,2]
[365887104,1749972425631,-300.0,0.00021914,2]
[365887105,1749972425653,-500.0,0.00021915,2]
[365887106,1749972425675,-153.0,0.00021915,2]
[365887107,1749972425697,-171.97399358,0.00021915,2]
[365887108,1749972425720,-500.0,0.00021915,2]
[365887109,1749972425744,-206.40871627,0.00021915,2]
[365887110,1749972425768,-222.79023639,0.00021915,2]
[365887111,1749972425793,-157.591,0.00021916,2]
[365887112,1749972425815,-180.36399387,0.00021916,2]
[365887113,1749972425840,-387.42533604,0.00021916,2]
[365887114,1749972426000,1000.0,0.000235,120]
[365887115,1749972431130,-112.57466396,0.00021916,2]
[365887116,1749972431153,-500.0,0.00021916,2]
[365887117,1749972431178,-231.40313169,0.00021916,2]
[365887118,1749972432126,-268.59686831,0.00021916,2]
[365887119,1749972432150,-500.0,0.00021916,2]
[365887120,1749972432175,-500.0,0.00021916,2]
[365887121,1749972432199,-500.0,0.00021916,2]
[365887122,1749972432223,-233.99758512,0.00021916,2]
[365887123,1749972436908,1000.0,0.000237,120]
[365887124,1749972438091,-266.00241488,0.00021916,2]
[365887125,1749972438115,-500.0,0.00021916,2]
[365887126,1749972438143,-39.10151029,0.00021916,2]
[365887127,1749972447103,-460.89848971,0.00021916,2]
[365887128,1749972447128,-500.0,0.00021916,2]
[365887129,1749972447153,-500.0,0.00021916,2]
[365887130,1749972447177,-70.91614627,0.00021916,2]
[365887141,1749972555684,4000.0,0.000246,120]
[365887145,1749972565927,4000.0,0.000246,120]
[365887149,1749972589965,4000.0,0.000246,120]
[365887150,1749972600653,4000.0,0.000246,120]
[365887151,1749972611773,4000.0,0.000246,120]
[365887153,1749972622549,4000.0,0.000246,120]
[365887159,1749972631726,4000.0,0.000246,120]
[365887180,1749972632220,-169.785493,0.00020931,2]
[365887181,1749972632229,-1981.55,0.00021071,2]
[365887182,1749972632239,-1480.97847831,0.000219,6]
[365887183,1749972632248,-55.35099817,0.00021915,2]
[365887184,1749972632373,-244.64900183,0.00021915,2]
[365887185,1749972632383,-1200.0,0.00021915,2]
[365887186,1749972632392,-429.08385373,0.00021916,2]
[365887187,1749972632401,-500.0,0.00021916,2]
[365887188,1749972632411,-394.47244532,0.00021916,2]
[365887190,1749972632422,-105.52755468,0.00021916,2]
[365887192,1749972632432,-500.0,0.00021916,2]
[365887194,1749972632441,-500.0,0.00021916,2]
[365887196,1749972632451,-500.0,0.00021916,2]
[365887197,1749972632460,-500.0,0.00021916,2]
[365887198,1749972632469,-500.0,0.00021916,2]
[365887200,1749972632478,-500.0,0.00021916,2]
[365887202,1749972632487,-500.0,0.00021916,2]
[365887203,1749972632496,-500.0,0.00021916,2]
[365887204,1749972632505,-500.0,0.00021916,2]
[365887205,1749972632515,-500.0,0.00021916,2]
[365887206,1749972632524,-500.0,0.00021916,2]
[365887207,1749972632533,-331.91899341,0.00021916,2]
[365887208,1749972632542,-500.0,0.00021916,2]
[365887209,1749972632551,-500.0,0.00021916,2]
[365887210,1749972632561,-500.0,0.00021916,2]
[365887211,1749972632571,-360.0,0.00021917,4]
[365887212,1749972632581,-460.0,0.00021917,4]
[365887213,1749972632590,-351.23316417,0.00021917,4]
[365887214,1749972632600,-460.0,0.00021917,4]
[365887215,1749972632609,-460.0,0.00021917,4]
[365887216,1749972632618,-460.0,0.00021917,4]
[365887217,1749972632628,-420.0,0.00021917,4]
[365887218,1749972632638,-460.0,0.00021917,4]
[365887219,1749972632647,-430.0,0.00021917,4]
[365887220,1749972632656,-420.0,0.00021917,4]
[365887221,1749972632666,-378.40941849,0.00021917,4]
[365887222,1749972632675,-400.0,0.00021917,4]
[365887223,1749972632685,-271.612696,0.00021917,4]
[365887224,1749972632694,-380.0,0.00021917,4]
[365887225,1749972632703,-460.0,0.00021917,4]
[365887226,1749972632712,-257.02996834,0.00021917,4]
[365887227,1749972632721,-300.94274445,0.00021917,4]
[365887228,1749972632731,-370.0,0.00021917,2]
[365887229,1749972632741,-460.0,0.00021917,4]
[365887230,1749972632750,-460.0,0.00021917,4]
[365887231,1749972632764,-420.0,0.00021917,4]
[365887232,1749972632773,-451.55901371,0.00021917,4]
[365887233,1749972632783,-251.67605961,0.00021917,4]
[365887234,1749972632793,-460.0,0.00021917,4]
[365887235,1749972632803,-460.0,0.00021917,4]
[365887236,1749972632813,-460.0,0.00021917,4]
[365887237,1749972632822,-460.0,0.00021917,4]
[365887238,1749972632832,-460.0,0.00021917,4]
[365887239,1749972632843,-460.0,0.00021917,4]
[365887240,1749972632852,-460.0,0.00021917,4]
[365887241,1749972632861,-460.0,0.00021917,4]
[365887242,1749972632870,-460.0,0.00021917,4]
[365887243,1749972632880,-191.23724265,0.00021917,4]
[365887244,1749972632889,-460.0,0.00021917,4]
[365887245,1749972632899,-460.0,0.00021917,4]
[365887246,1749972632908,-536.29,0.00021917,4]
[365887247,1749972632919,-460.0,0.00021917,4]
[365887248,1749972632928,-460.0,0.00021917,4]
[365887249,1749972632938,-460.0,0.00021917,4]
[365887250,1749972632947,-607.78,0.00021917,4]
[365887251,1749972632956,-500.0,0.00021917,4]
[365887252,1749972632965,-460.0,0.00021917,4]
[365887253,1749972632974,-460.0,0.00021917,4]
[365887254,1749972632983,-460.0,0.00021917,4]
[365887255,1749972632993,-460.0,0.00021917,4]
[365887256,1749972633002,-460.0,0.00021917,4]
[365887257,1749972633011,-350.0,0.00021917,4]
[365887258,1749972633020,-460.0,0.00021917,4]
[365887259,1749972633031,-460.0,0.00021917,4]
[365887260,1749972633041,-460.0,0.00021917,4]
[365887261,1749972633051,-460.0,0.00021917,4]
[365887262,1749972633060,-460.0,0.00021917,4]
[365887263,1749972633070,-460.0,0.00021917,4]
[365887264,1749972633079,-460.0,0.00021917,4]
[365887265,1749972633089,-535.5,0.00021917,4]
[365887266,1749972633099,-460.0,0.00021917,4]
[365887267,1749972633109,-460.0,0.00021917,4]
[365887268,1749972633118,-460.0,0.00021917,4]
[365887269,1749972633128,-460.0,0.00021917,4]
[365887270,1749972633138,-460.0,0.00021917,2]
[365887271,1749972633147,-460.0,0.00021917,4]
[365887272,1749972633157,-460.0,0.00021917,4]
[365887273,1749972633167,-460.0,0.00021917,4]
[365887274,1749972633176,-460.0,0.00021917,4]
[365887275,1749972633187,-460.0,0.00021917,4]
[365887276,1749972633197,-437.18884101,0.00021917,4]
[365887277,1749972633206,-2081.66,0.00021917,4]
[365887278,1749972633216,-460.0,0.00021917,4]
[365887279,1749972633225,-460.0,0.00021917,4]
[365887280,1749972633235,-590.43,0.00021917,4]
[365887281,1749972633245,-286.57418429,0.00021917,4]
[365887282,1749972633254,-460.0,0.00021917,4]
[365887283,1749972633264,-721.25,0.00021917,4]
[365887284,1749972633273,-460.0,0.00021917,4]
[365887285,1749972633283,-460.0,0.00021917,4]
[365887286,1749972633292,-460.0,0.00021917,4]
[365887287,1749972633302,-460.0,0.00021917,4]
[365887288,1749972633311,-460.23179445,0.00021917,4]
[365887289,1749972633320,-460.0,0.00021917,4]
[365887290,1749972633329,-599.99,0.00021917,4]
[365887291,1749972633338,-596.54,0.00021917,4]
[365887292,1749972633347,-460.0,0.00021917,4]
[365887293,1749972633357,-2706.83,0.00021917,4]
[365887294,1749972633366,-460.0,0.00021917,4]
[365887295,1749972633376,-2556.86,0.00021917,4]
[365887296,1749972633385,-460.0,0.00021917,4]
[365887297,1749972633395,-460.0,0.00021917,4]
[365887298,1749972633405,-460.0,0.00021917,4]
[365887299,1749972633415,-1431.31,0.00021917,4]
[365887300,1749972633425,-460.0,0.00021917,4]
[365887301,1749972633434,-2934.93,0.00021917,4]
[365887302,1749972633444,-460.0,0.00021917,4]
[365887303,1749972633453,-460.0,0.00021917,4]
[365887304,1749972633463,-711.8,0.00021917,4]
[365887305,1749972633473,-460.0,0.00021917,4]
[365887306,1749972633482,-1266.19,0.00021917,4]
[365887307,1749972633491,-460.0,0.00021917,4]
[365887308,1749972633502,-357.04509938,0.00021917,4]
[365887309,1749972633645,-460.0,0.00021917,4]
[365887310,1749972633655,-460.0,0.00021917,4]
[365887311,1749972633666,-1026.27,0.00021917,4]
[365887312,1749972633677,-460.0,0.00021917,4]
[365887313,1749972633687,-460.0,0.00021917,4]
[365887314,1749972633698,-460.0,0.00021917,4]
[365887315,1749972633707,-460.0,0.00021917,4]
[365887316,1749972633717,-460.0,0.00021917,4]
[365887317,1749972633727,-460.0,0.00021917,4]
[365887318,1749972633736,-460.0,0.00021917,4]
[365887319,1749972633746,-460.0,0.00021917,4]
[365887320,1749972633757,-460.0,0.00021917,4]
[365887321,1749972633770,-320.0,0.00021917,4]
[365887322,1749972633779,-460.0,0.00021917,4]
[365887323,1749972633788,-512.21,0.00021917,4]
[365887324,1749972633797,-460.0,0.00021917,4]
[365887325,1749972633808,-460.0,0.00021917,4]
[365887326,1749972633817,-460.0,0.00021917,4]
[365887327,1749972633826,-1572.09,0.00021917,4]
[365887328,1749972633837,-460.0,0.00021917,4]
[365887329,1749972633847,-460.0,0.00021917,4]
[365887330,1749972633856,-460.0,0.00021917,4]
[365887331,1749972633866,-460.0,0.00021917,4]
[365887332,1749972633875,-1897.03,0.00021917,4]
[365887333,1749972633885,-1532.15,0.00021917,4]
[365887334,1749972633895,-460.0,0.00021917,4]
[365887335,1749972633904,-864.37,0.00021917,4]
[365887336,1749972633914,-457.01784821,0.00021917,4]
[365887337,1749972633924,-460.0,0.00021917,4]
[365887338,1749972633935,-460.0,0.00021917,4]
[365887339,1749972633944,-460.0,0.00021917,4]
[365887340,1749972633954,-591.09,0.00021917,4]
[365887341,1749972633963,-420.0,0.00021917,4]
[365887342,1749972633972,-460.0,0.00021917,4]
[365887343,1749972633982,-370.0,0.00021917,4]
[365887344,1749972633991,-500.0,0.00021917,4]
[365887345,1749972634001,-460.0,0.00021917,4]
[365887346,1749972634010,-1466.66,0.00021917,4]
[365887347,1749972634019,-300.0,0.00021917,4]
[365887348,1749972634029,-823.77,0.00021917,4]
[365887349,1749972634038,-1439.65,0.00021917,4]
[365887350,1749972634047,-479.54,0.00021917,4]
[365887351,1749972634057,-348.23200574,0.00021917,4]
[365887352,1749972634067,-460.0,0.00021917,4]
[365887353,1749972634077,-460.0,0.00021917,4]
[365887354,1749972634087,-460.0,0.00021917,4]
[365887355,1749972634097,-460.0,0.00021917,4]
[365887356,1749972634108,-460.0,0.00021917,4]
[365887357,1749972634117,-460.0,0.00021917,4]
[365887358,1749972634128,-460.0,0.00021917,4]
[365887359,1749972634137,-460.0,0.00021917,4]
[365887360,1749972634147,-1993.23,0.00021917,4]
[365887361,1749972634156,-320.83407971,0.00021917,4]
[365887362,1749972634167,-460.0,0.00021917,4]
[365887363,1749972634176,-238.23448006,0.00021917,4]
[365887364,1749972634186,-460.0,0.00021917,4]
[365887365,1749972634196,-337.75577609,0.00021917,4]
[365887366,1749972634205,-460.0,0.00021917,4]
[365887367,1749972634215,-3480.49,0.00021917,4]
[365887368,1749972634225,-392.06457623,0.00021917,4]
[365887369,1749972634235,-460.0,0.00021917,4]
[365887370,1749972634244,-505.59,0.00021917,4]
[365887371,1749972634254,-3160.76,0.00021917,4]
[365887372,1749972634264,-460.0,0.00021917,4]
[365887373,1749972634273,-460.0,0.00021917,4]
[365887374,1749972634283,-370.0,0.00021917,4]
[365887375,1749972634292,-500.0,0.00021973,2]
[365887376,1749972634302,-164.0,0.00022,3]
[365887377,1749972634312,-164.0,0.00022,3]
[365887378,1749972634322,-167.25823053,0.00022,3]
[365887379,1749972634331,-1480.97847802,0.00022038,6]
[365887380,1749972634342,-1480.97847802,0.00022176,6]
[365887381,1749972634351,-460.0,0.00022191,4]
[365887382,1749972634362,-460.0,0.00022191,4]
[365887383,1749972634372,-460.0,0.00022191,4]
[365887384,1749972634382,-279.39463629,0.00022191,4]
[365887385,1749972634392,-298.36877688,0.00022191,4]
[365887386,1749972634402,-536.29,0.00022191,4]
[365887387,1749972634412,-460.0,0.00022191,4]
[365887388,1749972634423,-350.0,0.00022191,4]
[365887389,1749972634432,-607.78,0.00022191,4]
[365887390,1749972634442,-460.0,0.00022191,4]
[365887391,1749972634451,-356.52464929,0.00022191,4]
[365887392,1749972634461,-350.0,0.00022191,4]
[365887393,1749972634471,-460.0,0.00022191,4]
[365887394,1749972634481,-535.5,0.00022191,4]
[365887395,1749972634491,-499.10135825,0.00022191,4]
[365887396,1749972634500,-460.0,0.00022191,2]
[365887397,1749972634511,-460.0,0.00022191,4]
[365887398,1749972634520,-2081.66,0.00022191,4]
[365887399,1749972634530,-460.0,0.00022191,4]
[365887400,1749972634541,-590.43,0.00022191,4]
[365887401,1749972634551,-721.25,0.00022191,4]
[365887402,1749972634561,-460.0,0.00022191,4]
[365887403,1749972634571,-460.0,0.00022191,4]
[365887404,1749972634581,-460.0,0.00022191,4]
[365887405,1749972634591,-460.0,0.00022191,4]
[365887406,1749972634601,-599.99,0.00022191,4]
[365887407,1749972634610,-460.0,0.00022191,4]
[365887408,1749972634619,-2706.83,0.00022191,4]
[365887409,1749972634629,-2556.86,0.00022191,4]
[365887410,1749972634640,-253.92629083,0.00022191,4]
[365887411,1749972634664,-206.07370917,0.00022191,4]
[365887412,1749972634674,-460.0,0.00022191,4]
[365887413,1749972634684,-460.0,0.00022191,4]
[365887414,1749972634693,-1202.06098995,0.00022191,4]
[365887556,1749972640688,4000.0,0.000246,120]
[365887654,1749972643230,-169.49792606,0.00021817,2]
[365887656,1749972643240,-619.84,0.00021917,4]
[365887657,1749972643250,-460.0,0.00021917,4]
[365887660,1749972643261,-541.23,0.00021917,4]
[365887662,1749972643271,-229.24901005,0.00022191,4]
[365887664,1749972643281,-160.18306389,0.00022191,4]
[365887669,1749972643324,-989.03969392,0.00022191,4]
[365887671,1749972643335,-318.96986872,0.00022191,4]
[365887764,1749972650674,4000.0,0.000246,120]
[365887765,1749972662440,4000.0,0.000246,120]
[365887766,1749972670570,4000.0,0.000246,120]
[365887768,1749972703351,4000.0,0.000246,120]
[365887770,1749972759401,162.126578,0.00013699,2]
[365887772,1749972775187,-199.12403609,0.00020164,2]
[365887773,1749972781521,4000.0,0.000246,120]
[365887774,1749972787228,-168.0,0.00020164,2]
[365887776,1749972838979,1133.0,0.000246,120]
[365887778,1749972854383,-132.87596391,0.00020164,2]
[365887779,1749972854407,-18.12403609,0.00020775,2]
[365887782,1749972999840,-183.66,0.00020164,2]
[365887783,1749973049860,-316.34,0.00020164,2]
[365887784,1749973049882,-138.66,0.00020389,2]
[365887787,1749973076815,13920.40764018,0.00018999,2]
[365887788,1749973076839,18090.007625,0.00018999,2]
[365887789,1749973076864,18090.007625,0.00018999,2]
[365887790,1749973076888,7814.94429953,0.00018999,2]
[365887791,1749973077392,-42.26713931,0.00020389,2]
[365887792,1749973077417,-130.73286069,0.00020775,2]
[365887793,1749973083071,-163.60047137,0.00020762,2]
[365887794,1749973113028,-500.0,0.00020762,2]
[365887795,1749973113754,-243.08109879,0.00020762,2]
[365887796,1749973150324,10275.06332547,0.0002,3]
[365887797,1749973150349,18090.007625,0.0002,3]
[365887798,1749973150374,18090.007625,0.0002,3]
[365887799,1749973150415,18090.007625,0.0002,3]
[365887800,1749973150458,3857.22851561,0.0002,3]
[365887801,1749973181721,-5000.0,0.00020554,2]
[365887802,1749973181745,-139.60536124,0.00020762,2]
[365887803,1749973181769,-19.14310322,0.00020775,2]
[365887804,1749973181790,-178.329848,0.00020891,2]
[365887805,1749973181815,-162.126578,0.00020951,2]
[365887806,1749973181837,-2057.95,0.00021028,2]
[365887807,1749973181858,-267.35103349,0.00021813,2]
[365887808,1749973181879,-250.0,0.00021877,2]
[365887809,1749973181901,-210.80228042,0.00021886,2]
[365887810,1749973181930,-1779.48325749,0.000219,6]
[365887811,1749973181952,-300.0,0.0002191,2]
[365887812,1749973181973,-500.0,0.00021911,2]
[365887813,1749973181994,-202.20853814,0.00021911,2]
[365887815,1749973232392,-157.74935064,0.00020164,2]
[365887816,1749973248127,-342.25064936,0.00020164,2]
[365887817,1749973248150,-2381.74935064,0.00020554,2]
[365887822,1749973274534,5000.0,0.00017996,2]
[365887828,1749973626140,-447.8914746,0.00020164,2]
[365887829,1749973628130,-52.1085254,0.00020164,2]
[365887830,1749973628153,-5000.0,0.00020348,2]
[365887831,1749973628176,-168.0,0.00020505,2]
[365887832,1749973628200,-2784.27534579,0.00020554,2]
[365887833,1749973628222,-300.0,0.00020797,2]
[365887834,1749973628244,-333.26028261,0.00020798,2]
[365887835,1749973630222,-866.73971739,0.00020798,2]
[365887836,1749973630245,-300.0,0.00020798,2]
[365887837,1749973630268,-300.0,0.00020799,2]
[365887838,1749973630292,-300.0,0.00020799,2]
[365887839,1749973630316,-88.62034879,0.00020799,2]
[365887841,1749973637087,-166.881288,0.00020698,2]
[365887842,1749973637108,-153.28770019,0.00020699,2]
[365887843,1749973640108,-13.5935878,0.00020699,2]
[365887844,1749973640131,-211.37965121,0.00020799,2]
[365887845,1749973640152,-149.84811666,0.00020799,2]
[365887846,1749973651076,-396.06570225,0.00020491,2]
[365887848,1749973749101,157.538547,0.00013699,2]
[365887850,1749973798632,427.94101386,0.000189,2]
[365887880,1749973832557,-3744.26285417,0.00020286,2]
[365887882,1749973832570,-446.49496264,0.00020286,2]
[365887884,1749973832852,-809.24218319,0.00020286,2]
[365887885,1749973832861,-157.538547,0.00020548,2]
[365887886,1749973832871,-1200.0,0.00020796,2]
[365887887,1749973832881,-173.0,0.00020797,2]
[365887888,1749973832891,-300.0,0.00020797,2]
[365887889,1749973832901,-300.0,0.00020797,2]
[365887890,1749973832911,-500.0,0.00020798,2]
[365887891,1749973832921,-500.0,0.00020798,2]
[365887892,1749973832930,-318.29771709,0.00020798,2]
[365887893,1749973832940,-500.0,0.00020798,2]
[365887894,1749973832950,-500.0,0.00020798,2]
[365887895,1749973832961,-500.0,0.00020798,2]
[365887896,1749973832971,-500.0,0.00020798,2]
[365887897,1749973832981,-500.0,0.00020798,2]
[365887898,1749973832990,-500.0,0.00020798,2]
[365887899,1749973833000,-3993.6,0.000208,2]
[365887900,1749973833010,-156.587,0.00020918,2]
[365887901,1749973833020,-10170.01564724,0.00020918,2]
[365887902,1749973833030,-162.380719,0.00020973,2]
[365887903,1749973833040,-2056.33,0.00021024,2]
[365887904,1749973833050,-189.29332823,0.00021028,2]
[365887905,1749973833060,-198.01634321,0.0002104,2]